Cogmind - Beta 15 @@@ ROGUE MODE // 2025.10.04 @ 09:36:15 Player: opdo Result: Destroyed self with Grenade Launcher Performance ------------- Evolutions (0) 0 Regions Visited (2) 400 Robots Destroyed (21) 105 Value Destroyed (465) 465 Prototype IDs (2) 40 Alien Tech Used (0) 0 Bonus (0) 0 TOTAL SCORE: 1010 Bonus ------- None Cogmind --------- Core Integrity 0/250 Matter 136/300 Energy 100/100 System Corruption 0% Temperature Cool (0) Movement Treading (260) Ox1 Location -10/Subcaves Parts ------- > --- POWER (1) -------- (None) > --- PROPULSION (2) --- Spiked Treads > --- UTILITY (2) ------ Large Storage Unit > --- WEAPON (2) ------- Grenade Launcher > --- INVENTORY (15) --- Aluminum Leg Aluminum Leg Subdweller Monowheel Large Storage Unit Subdweller Optics Terrain Scanner Power Shielding Assault Rifle Assault Rifle Assault Rifle Assault Rifle Light Assault Rifle Light Assault Rifle Subdweller Machine Gun Mining Laser Peak State ------------ > --- POWER ------------ Subdweller Power Source > --- PROPULSION ------- Light Treads Spiked Treads > --- UTILITY ---------- Large Storage Unit Light Armor Plating > --- WEAPON ----------- Assault Rifle Subdweller Machine Gun > --- INVENTORY -------- Aluminum Leg Aluminum Leg Large Storage Unit Terrain Scanner Power Shielding Assault Rifle Assault Rifle Assault Rifle Light Assault Rifle Light Assault Rifle Subdweller Machine Gun Grenade Launcher Mining Laser [Rating: 11] Favorites ----------- Power Light Ion Engine Engine Light Ion Engine Propulsion Light Treads Treads Light Treads Leg Aluminum Leg Utility Large Storage Unit Device Terrain Scanner Storage Large Storage Unit Protection Light Armor Plating Weapon Assault Rifle Energy Gun Small Laser Ballistic Gun Assault Rifle Launcher Grenade Launcher Special Weapon Mining Laser Build | -11 -10 -10 ------- Run | Yrd Mat Sub Slots Evolved . | . . . Power . | . . . Propulsion . | . . . Utility . | . . . Weapon . | . . . Parts Attached 24 | 6 12 6 Power 4 | 1 1 2 Engine 4 | 1 1 2 Core . | . . . Reactor . | . . . Propulsion 6 | 2 3 1 Treads 4 | 2 1 1 Leg 2 | . 2 . Wheel . | . . . Hover . | . . . Flight . | . . . Utility 5 | 1 3 1 Device 1 | . 1 . Storage 3 | 1 2 . Processor . | . . . Hackware . | . . . Protection 1 | . . 1 Artifact . | . . . Weapon 9 | 2 5 2 Energy Gun 1 | . 1 . Energy Cannon . | . . . Ballistic Gun 6 | 2 3 1 Ballistic Cannon . | . . . Launcher 1 | . 1 . Special Weapon 1 | . . 1 Impact Weapon . | . . . Slashing Weapon . | . . . Piercing Weapon . | . . . Special Melee Weapon . | . . . Unidentified Prototypes . | . . . Parts Lost 10 | . 3 7 Power 4 | . 1 3 Propulsion 3 | . 1 2 Utility 1 | . . 1 Weapon 2 | . 1 1 Highest Loss Streak 4 | . 2 4 To Critical Strikes . | . . . Average Backups 8 | 1 7 11 Power . | . . . Propulsion 1 | 1 1 1 Utility 1 | . . 3 Weapon 4 | . 3 6 Tool/Special . | . . . Unused Backups 9 | . 1 8 Power . | . . . Propulsion 2 | . 1 1 Utility 2 | . . 2 Weapon 5 | . . 5 Tool/Special . | . . . Average Slot Usage (%) 96 | . 95 97 Engine 12 | . 12 12 Treads 19 | . 23 13 Leg 8 | . 4 14 Device 7 | . 11 1 Storage 14 | . 14 14 Protection 4 | . . 12 Ballistic Gun 23 | . 26 18 Special Weapon 3 | . . 9 Peak Build Rating 11 | 6 8 11 Average Rating 7 | 5 6 8 On Entrance 4 | . 6 8 Naked Turns . | . . . Heaviest Build 34 | 11 27 34 Greatest Support 40 | 40 40 40 Greatest Overweight (x) 3 | 3 1 2 Average Overweight (x) . | . . . Largest Inventory Capacity 15 | 8 15 15 Average Capacity 11 | 7 9 15 Most Carried 15 | 4 10 15 Average Carried 8 | 2 7 11 Final Capacity 15 | 8 15 15 Final Carried 15 | 4 10 15 Class Distribution -------------------- 100% | Mutant Dominant Class ---------------- Mutant | -10/Materials Mutant | -10/Subcaves Resources | -11 -10 -10 ----------- Run | Yrd Mat Sub Matter Collected 696 | 244 284 168 Remotely . | . . . Salvage Created 606 | 23 381 202 Parts 44 | 3 25 16 Haulers Intercepted . | . . . Recyclers Shooed 1 | 1 . . Parts Field Recycled . | . . . Retrieved Matter . | . . . Parts Self-Destructed 5 | . . 5 Prevented . | . . . Kills | -11 -10 -10 ------- Run | Yrd Mat Sub Combat Hostiles Destroyed 15 | . 10 5 Guns 13 | . 9 4 AOE 2 | . 1 1 Classes Destroyed 10 | 1 7 2 Worker 1 | . 1 . Builder 1 | . 1 . Tunneler 1 | 1 . . Recycler 1 | . 1 . Operator 1 | . 1 . Watcher 1 | . 1 . Swarmer 6 | . 6 . Grunt 4 | . 4 . Sentry 1 | . . 1 Subdweller 4 | . . 4 Best Kill Streak 8 | 1 8 1 Combat Bots Only 5 | . 5 1 Max Kills in Single Turn 2 | 1 2 1 Gunslinging . | . . . Exploded 1 | . 1 1 Melee . | . . . Uniques/NPCs Destroyed . | . . . Combat | -11 -10 -10 -------- Run | Yrd Mat Sub Hostile Shots Fired 107 | . 59 48 Missed 21 | . 9 12 Hits 86 | . 50 36 Projectile 86 | . 50 36 Critical Strikes 1 | . . 1 Damage Taken 1434 | . 546 888 Core 250 | . 70 180 Absorbed by Shields . | . . . Core Remaining (%) 100 | 100 . . Volleys Fired 96 | 3 30 63 Largest 2 | 2 2 2 Hottest 130 | 40 60 130 Shots Fired 167 | 6 59 102 Gun 131 | 6 56 69 Cannon . | . . . Launcher 7 | . 3 4 Special 29 | . . 29 Kinetic 130 | 6 55 69 Thermal 30 | . 1 29 Explosive 7 | . 3 4 Electromagnetic . | . . . Robot Hit Streak 24 | 3 17 24 Robot Miss Streak 3 | 1 3 3 Penetration Max . | . . . Secondary Targets 2 | . 2 . Max Gunslinging Chain 1 | . 1 . Shots Hit Robots 94 | 3 35 56 Core Hits 35 | 1 21 13 Critical Kills . | . . . Critical Parts Destroyed . | . . . Critical Strikes 2 | . . 2 Destroy 2 | . . 2 Melee Attacks . | . . . Impact . | . . . Slashing . | . . . Piercing . | . . . Sneak Attacks . | . . . Combat Hostiles . | . . . Follow-up Attacks . | . . . Damage Inflicted 1874 | 33 614 1227 Guns 1238 | 33 389 816 Cannons . | . . . Explosions 630 | . 225 405 Melee . | . . . Ramming 6 | . . 6 Kinetic 1238 | 33 389 816 Thermal . | . . . Explosive 630 | . 225 405 Electromagnetic . | . . . Impact . | . . . Slashing . | . . . Piercing . | . . . Highest Corruption . | . . . Average Corruption . | . . . Corruption Purged . | . . . Corruption Blocked . | . . . Overload Shots . | . . . Overflow Damage 18 | . 8 10 Projectiles . | . . . Explosions 18 | . 8 10 Melee . | . . . Knockbacks 1 | . . 1 Impact 1 | . . 1 Kinetic . | . . . Secondary . | . . . Self-Inflicted Damage 136 | . 13 123 Shots 5 | . 1 4 Rammed . | . . . Targets Rammed 2 | . . 2 Kicked 2 | . . 2 Crushed . | . . . Highest Temperature 263 | . 34 263 Average Temperature 63 | . 15 143 Received Heat Transfer 615 | . 201 414 Siege Activations . | . . . Martial Activations . | . . . Shielding Activations . | . . . Robots Disrupted . | . . . Combat Hostiles . | . . . Robots Corrupted . | . . . Combat Hostiles . | . . . Parts Fried . | . . . Impact Corruptions . | . . . Robots Melted . | . . . Combat Hostiles . | . . . Parts Melted . | . . . Heat Transferred . | . . . Parts Sabotaged . | . . . Parts Stolen . | . . . Parts Stripped . | . . . Power Chain Reactions . | . . . Alert | -11 -10 -10 ------- Run | Yrd Mat Sub Maximum Alert Level . | . . . Low Security (%) 100 | 100 100 . Level 1 . | . . . Level 2 . | . . . Level 3 . | . . . Level 4 . | . . . Level 5 . | . . . High Security . | . . . Max Security . | . . . Peak Influence 139 | 5 139 . Initial . | . . . Average 22 | . 24 . Influence Increases 337 | 5 312 20 Destroy 0b10 Robot/C 220 | . 200 20 Destroy 0b10 Robot/NC 30 | 5 25 . Destroy Leader 42 | . 42 . Destroy Structure 15 | . 15 . Partial Spotted 15 | . 15 . Lose Combat Pursuer 15 | . 15 . Influence Decreases 337 | 5 312 20 Time Decay 317 | 5 292 20 Lost Part 20 | . 20 . Squads Dispatched 1 | . 1 . Investigation 1 | . 1 . Extermination . | . . . Reinforcement . | . . . Assault . | . . . Garrison . | . . . Intercept . | . . . Searches Triggered . | . . . Construction Impeded . | . . . Haulers Reinforced . | . . . Active Scanning Responses . | . . . Cargo Convoy Interrupts . | . . . Stealth | -11 -10 -10 --------- Run | Yrd Mat Sub Distress Signals . | . . . Communications Jammed . | . . . Distress Signals . | . . . Times Spotted 26 | . 19 7 Peak Tracking Total 4 | . 4 3 Tactical Retreats 1 | . 1 . Traps | -11 -10 -10 ------- Run | Yrd Mat Sub Traps Triggered 2 | . 1 1 Indirectly . | . . . Trap Hack Attempts . | . . . Triggered . | . . . Disarmed . | . . . Reprogrammed . | . . . Reused . | . . . Traps Extracted . | . . . Installed 1 | . . 1 Triggered . | . . . Machines | -11 -10 -10 ---------- Run | Yrd Mat Sub Machines Disabled 2 | . . 2 Max in Single Turn 2 | . . 2 Machines Repaired . | . . . Machines Dismantled . | . . . Machines Sabotaged . | . . . Overloaded Fab Kills . | . . . Hacking | -11 -10 -10 --------- Run | Yrd Mat Sub Machines Accessed 4 | . 4 . Terminals 4 | . 4 . Fabricators . | . . . Repair Stations . | . . . Recycling Units . | . . . Scanalyzers . | . . . Garrison Access . | . . . Total Hacks 12 | . 12 . Successful 5 | . 5 . Failed 7 | . 7 . Catastrophic . | . . . Database Lockouts . | . . . Manual 10 | . 10 . Terminals 12 | . 12 . Fabricators . | . . . Repair Stations . | . . . Recycling Units . | . . . Scanalyzers . | . . . Garrison Access . | . . . Terminal Hacks 2 | . 2 . Prototype ID Bank 1 | . 1 . Terminal Index 1 | . 1 . Fabricator Hacks . | . . . Repair Station Hacks . | . . . Recycling Unit Hacks . | . . . Scanalyzer . | . . . Garrison Access Hacks . | . . . Unauthorized Hacks 3 | . 3 . Terminals 3 | . 3 . Botnet 1 | . 1 . Skim 2 | . 2 . Fabricators . | . . . Repair Stations . | . . . Recycling Units . | . . . Scanalyzers . | . . . Garrison Access . | . . . Data Cores Recovered 1 | . 1 . Used . | . . . Hacking Detections 4 | . 4 . Full Trace Events . | . . . Feedback Events . | . . . Feedback Blocked . | . . . Robot Schematics Acquired . | . . . Robots Built . | . . . Authchips . | . . . Time . | . . . Total Robot Build Rating . | . . . Part Schematics Acquired . | . . . Parts Built . | . . . Authchips . | . . . Time . | . . . Total Part Build Rating . | . . . Parts Repaired . | . . . Time . | . . . Parts Recycled . | . . . Recycled Matter . | . . . Retrieved Matter . | . . . Retrieved Components . | . . . Parts Scanalyzed . | . . . Part Schematics Acquired . | . . . Parts Damaged . | . . . Bothacking | -11 -10 -10 ------------ Run | Yrd Mat Sub Used RIF Installer . | . . . Robots Hacked . | . . . Non-combat . | . . . Combat . | . . . Robot Hacks Applied . | . . . Relay Couplers Released . | . . . Fabnet Peak Effective % . | . . . Robots Rewired . | . . . Allies Hacked . | . . . Hacks Repelled . | . . . Allies | -11 -10 -10 -------- Run | Yrd Mat Sub Total Allies . | . . . Largest Group . | . . . Highest-Rated Group . | . . . Highest-Rated Ally . | . . . Total Orders . | . . . Ally Attacks . | . . . Total Damage . | . . . Kills . | . . . Allies Corrupted . | . . . Allies Melted . | . . . Intel | -11 -10 -10 ------- Run | Yrd Mat Sub Active Infowar (turns) 1228 | . 1137 91 Terrain 1228 | . 1137 91 Robot Analysis Total . | . . . Derelict Logs Recovered 1 | . . 1 Drone Launches . | . . . Drone Recoveries . | . . . Exploration | -11 -10 -10 ------------- Run | Yrd Mat Sub Turns Passed 2403 | 96 1378 929 Spaces Moved 1188 | 51 764 373 Core 9 | 9 . . Treads 896 | 42 680 174 Legs 283 | . 84 199 Wheels . | . . . Hover . | . . . Flight . | . . . Fastest Speed 50 | 50 160 160 Average Speed 166 | 149 163 176 Slowest Speed 260 | 200 190 260 Overloaded Moves . | . . . Propulsion Burnouts . | . . . Robots Hopped . | . . . Potential Cave-ins . | . . . Cave-ins Triggered . | . . . Exploration Rate (%) 37 | 4 92 17 Regions Visited 2 Branch Regions 1 Pre-discovered Areas 2 | . . 2 Known Exits Taken . | . . . Unknown Exits Taken 2 | 1 1 . Scrap Searched . | . . . Spaces Dug . | . . . Terrain Destroyed 16 | . 14 2 Melee . | . . . Projectile . | . . . AOE 16 | . 14 2 Terrain Rammed . | . . . Walls Destroyed . | . . . Machines Disabled . | . . . Actions | -11 -10 -10 --------- Run | Yrd Mat Sub Total 1381 | 63 838 480 Wait 34 | . 14 20 Move 1186 | 50 763 373 Hop . | . . . Pick Up 20 | 4 10 6 Fast Attach 10 | 6 1 3 Attach 6 | . 4 2 Detach 2 | . 1 1 Swap 18 | . 10 8 Drop 6 | . 5 1 Fire 96 | 3 30 63 Melee . | . . . Ram . | . . . Kick 2 | . . 2 Crush . | . . . Escape Stasis . | . . . Rewire . | . . . Trap 1 | . . 1 Miscellaneous . | . . . Route ------- -11/Scrapyard -10/Materials (discovered 5 exits: [*Mat x3] / [*Min] / [*Sub]) -10/Subcaves (discovered 1 exit: [*Mat]) History --------- Turn | Location | Event 7 | -11/Scrapyard | Discovered new exit (range 16) 97 | -11/Scrapyard | Entered Materials 271 | -10/Materials | Discovered new exit (range 16) 338 | -10/Materials | Build established: Mutant 519 | -10/Materials | Discovered new exit (range 3) 755 | -10/Materials | Discovered new exit (range 3) 1268 | -10/Materials | Discovered new exit (range 14) 1430 | -10/Materials | Discovered new exit (range 7) 1475 | -10/Materials | Entered Subcaves 1480 | -10/Subcaves | Discovered new exit (range 6) 1560 | -10/Subcaves | A swath of the cavern ceiling suddenly collapsed 1691 | -10/Subcaves | Shifting Twisted Machinery released Sub. Machine Gun 2027 | -10/Subcaves | Shifting Twisted Machinery released Spk. Treads 2064 | -10/Subcaves | Learned location of Zion (-7) 2064 | -10/Subcaves | Met a Zionite searching for "candidates" 2146 | -10/Subcaves | Core integrity fell below 50% 2390 | -10/Subcaves | Visited 4L-MR0's lab 2399 | -10/Subcaves | Core integrity fell below 20% 2404 | -10/Subcaves | Destroyed self with Grenade Launcher Last Messages --------------- 02200_ Acquired Sub. Power Source. 02205_ Acquired Sub. Monowheel. 02209_ Acquired Sub. Optics. 02301_ ZZ-4CN(R) suffers critical hit (Destroy). 02307_ ZZ-4CN(R) destroyed. 02310_ Acquired 36 matter. 02359_ Acquired derelict log, extracted data. World map confirmed: -7/Zion. 02381_ Triggered Piercing Trap. 02381_ Spikes shoot up from the floor. 02389_ Sub. Power Source destroyed. 02389_ Critical hit (Meltdown: +270). 02392_ Lgt. Armor Plating destroyed. 02396_ Machine disabled. 02400_ Sub. Machine Gun destroyed. 02401_ The unstable cave ceiling collapses. 02402_ C3-BHB(R) destroyed. 02404_ Lgt. Treads destroyed. 02404_ Destroyed Lgt. Treads. Map ----- +----------------------------------------------------+ | | | | | | | | | | | | | | | | | | | | | | | | | | | | | | | | | ?????????????????????????????????????????????????? | | ?????????????????????????????????????????????????? | | ?????????????????????????????????????????????????? | | ?????????????????????????####????????????????????? | | ???????????????????###?##<<<##???????????????????? | | ???????????????????? &# #???????????????????? | | ?????????????????????!%# <<<<#???????????????????? | | ??????????????????????RR << #???????????????????? | | ???????????????????????# <<#???????????????????? | | ???????????????????????# @<< #???????????????????? | | ???????????????????????## <#???????????????????? | | ??????????????????###### <<<<#???????????????????? | | ??????????????????# # <<##???????????????????? | | ??????????????????## <#????????????????????? | | ??????????????????#" ## ##????????????######### | | ????????????????###" "#####?#???????????#"""" # | | ??????????????### " ### ########????#""" | | ?????????????## ## ## ###### """"" | | ?????????????# "" "" | | ?????????????### ##### # "" # | | ???????????????### ######## ### " """ ## | | ?????????????????## ## ## ##?#"" " " # | | ??????????????????#### ###"""###""" | | ????????????????????# ## " ??## " ""# | | ????????????????????### ## # ####???# ## | | ??????????????????????####### "" #????#### ### | | ????????????????????????????# "" #???##"& #?# | | ????????????????????????????## "" #####"& = #?# | | ?????????????????????????????## ## ## ##? | | ??????????????????????????????### #### #? | | ????????????????????????????????## """"""#??# #? | | ?????????????????????????????????##"""" ""#?## # | | ??????????????????????????????????###"""" #?##### | | ????????????????????????????????????##""""##?????? | +----------------------------------------------------+ Best States ------------- Heat Dissipation 25 Energy Generation 15 Energy Capacity 200 Matter Stores 300 Matter Capacity 300 Sight Range 16 Terrain Scan Range 14 Terrain Scan Density 10 Armor Coverage 150 Evasion (%) 40 Recoil Reduction 2 Item Schematics ----------------- None Robot Schematics ------------------ None Fabricated ------------ Nothing Repaired ---------- Nothing Alien Tech Used ----------------- None Achievements -------------- None Challenges ------------ None Game ------ Seed NetworkedDroneProjector Manual? 0 Play Time 00:14:30 Cumulative 101.7 hours Start 2025.10.04 @ 09:25:49 End 2025.10.04 @ 09:36:15 Sessions 1 Manual Loads 0 Difficulty Rogue Special Mode None Game No. 276 Rogue 274 Adventurer 2 Explorer 0 Win Type - Total 1 Types 1/0/0/0/0/0/0/0/0/0 Lore% 75 Gallery% 60 Achievement% 51 Wizard Run 0 Options --------- Layout 2 ASCII 0 Keyboard 0 Movement Numpad Keybinds 0 Fullscreen 2 Font 24/Smallcaps Map View 50x44 Zoom Use 0% Tactical HUD 1 Map Filters NONE Filters NONE Steam 1 RUN: 34d31984-0ef7-4bd5-9584-14b8f95ca53d